bitfinex/quotes_ETHUSD_20240710
["timestamp","ask_amount","ask_price","bid_price","bid_amount"]
[1720586530033,1.10859645,3125.9,3125.1,2.3091]
[1720586530272,1.10859645,3125.8,3125.3,2.834]
[1720586530457,1.00452477,3126.3,3125.3,2.834]
[1720586530667,1.10851224,3126.2,3125.3,2.834]
[1720586530876,1.10851224,3126.1,3125.3,2.834]
[1720586531172,1.00452477,3126.3,3125.3,2.834]
[1720586531173,1.10851224,3126.0,3125.3,2.834]
[1720586531474,1.10851224,3126.1,3125.3,2.834]
[1720586531634,1.10851224,3126.0,3125.3,2.834]
[1720586531837,1.10851224,3126.1,3125.3,2.834]
[1720586532053,1.10851319,3126.0,3125.3,2.834]
[1720586532346,1.00452477,3126.2,3125.3,2.834]
[1720586532546,1.10851499,3126.1,3125.3,2.834]
[1720586532755,1.10851499,3126.0,3125.3,2.834]
[1720586532961,1.00452477,3126.1,3125.3,2.834]
[1720586533174,1.00452477,3126.3,3125.3,2.834]
[1720586533363,1.10846116,3126.2,3125.3,2.834]
[1720586533568,1.10846116,3126.1,3125.3,2.834]
[1720586533747,1.10846116,3126.2,3125.3,2.834]
[1720586534660,2.11298593,3126.2,3125.3,2.834]
[1720586534864,1.10846116,3126.1,3125.3,2.834]
[1720586535080,1.10846116,3126.0,3125.3,2.834]
[1720586535264,1.00452477,3126.2,3125.3,2.834]
[1720586535265,1.1084658,3126.1,3125.3,2.834]
[1720586535486,1.00452477,3126.2,3125.3,2.834]
[1720586535780,1.10846115,3126.1,3125.2,0.06398234]
[1720586535980,1.00452477,3126.5,3125.7,2.834]
[1720586536197,1.00452477,3126.5,3125.8,2.4685]
[1720586536359,1.10833798,3126.4,3125.8,2.4685]
[1720586536559,1.00452477,3126.5,3125.8,2.4685]
[1720586536762,1.10834244,3126.4,3125.8,2.4685]
[1720586536970,1.00452477,3126.5,3125.8,2.4685]
[1720586537276,1.10834237,3126.4,3125.8,2.4685]
[1720586537485,1.00452477,3126.5,3125.8,2.4685]
[1720586537655,1.10832642,3126.4,3125.8,2.4685]
[1720586537858,1.00452477,3126.5,3125.8,2.4685]
[1720586540796,1.00452477,3126.4,3125.8,2.4685]
[1720586541298,1.00452477,3126.3,3125.8,2.4685]
[1720586541770,1.23891388,3126.3,3125.8,2.4685]
[1720586541960,1.00452477,3126.2,3125.4,3.0]
[1720586542855,1.00452477,3126.2,3125.3,5.2173]
[1720586543077,1.00452477,3126.0,3124.9,5.2438575]
[1720586543403,1.00452477,3126.0,3124.9,5.0846]
[1720586543404,1.00452477,3125.6,3124.9,5.0846]
[1720586543602,1.00452477,3125.5,3124.9,5.0846]
[1720586543757,1.00452477,3125.4,3124.9,2.2506]
[1720586543954,1.00452477,3125.3,3124.9,2.2506]
[1720586544711,1.00452477,3125.2,3124.5,2.834]
[1720586545570,1.00452477,3125.1,3124.5,2.834]
[1720586546417,1.00452477,3125.2,3124.5,2.834]
[1720586546620,1.00452477,3125.3,3124.5,2.834]
[1720586547566,1.00452477,3125.2,3124.5,2.834]
[1720586548298,1.00452477,3125.0,3124.1,2.834]
[1720586548805,1.00452477,3124.9,3124.1,2.834]
[1720586549011,1.00452477,3124.8,3124.1,2.834]
[1720586549791,1.00452477,3124.9,3124.1,2.834]
[1720586550121,1.00452477,3125.0,3124.1,2.834]
[1720586550326,1.00452477,3125.2,3124.1,2.834]
[1720586550468,1.00452477,3125.3,3124.5,2.834]
[1720586550817,1.00452477,3125.3,3124.6,2.3857]
[1720586551319,1.00452477,3125.4,3124.6,2.3857]
[1720586551488,1.23891388,3125.4,3124.6,2.3857]
[1720586553113,1.00452477,3125.4,3124.6,2.3857]
[1720586553381,1.00452477,3125.8,3125.0,2.2513]
[1720586553608,1.00452477,3125.9,3125.0,2.2513]
[1720586553822,1.00452477,3126.0,3125.0,2.2513]
[1720586554326,1.00452477,3126.0,3125.0,2.55999]
[1720586554508,1.00452477,3126.3,3125.3,2.834]
[1720586554703,1.00452477,3126.5,3125.8,2.834]
[1720586554890,1.00452477,3126.6,3125.8,2.834]
[1720586555217,0.23438911,3126.5,3125.8,2.834]
[1720586555518,1.005833,3126.7,3125.8,2.834]
[1720586555725,1.005833,3126.6,3125.8,2.834]
[1720586556028,1.00582673,3126.7,3125.8,2.834]
[1720586556195,1.24051963,3126.7,3125.8,2.834]
[1720586556393,1.3411023,3126.9,3125.8,2.834]
[1720586556394,1.00582673,3126.8,3125.8,2.834]
[1720586558699,1.00582673,3126.7,3125.8,2.834]
[1720586559125,1.00582673,3126.4,3125.5,2.2513]
[1720586559325,1.00582673,3126.3,3125.5,2.2513]
[1720586559542,1.00582673,3126.2,3125.5,2.2513]
[1720586559900,1.00582673,3126.1,3125.5,2.2513]
[1720586560800,1.00582673,3126.1,3125.1,2.465]
[1720586561034,1.00582673,3126.0,3125.1,2.465]
[1720586561312,1.3411023,3126.2,3125.1,2.465]
[1720586561313,1.00582673,3126.1,3125.1,2.465]
[1720586561694,1.00582673,3126.0,3125.1,2.465]
[1720586561943,1.00581386,3126.0,3125.1,2.465]
[1720586562645,1.00581386,3125.9,3125.1,2.465]
[1720586563160,1.24050376,3125.9,3125.1,2.465]
[1720586563331,1.00581386,3125.9,3125.1,2.465]
[1720586564611,1.00581386,3126.0,3125.1,2.465]
[1720586565013,3.30170614,3126.2,3125.1,2.465]
[1720586565229,1.00587973,3126.0,3125.5,2.4158]
[1720586565412,1.67646623,3126.3,3125.5,2.4158]
[1720586565413,1.00587973,3126.3,3125.5,2.4158]
[1720586565614,1.00587973,3126.3,3125.2,2.4158]
[1720586565615,1.00587973,3126.2,3125.2,2.4158]
[1720586565830,1.00587973,3126.1,3125.2,2.4158]
[1720586566038,1.0058404,3126.1,3125.2,2.4158]
[1720586566404,1.0058404,3126.0,3125.2,2.4158]
[1720586566740,1.34112053,3126.1,3125.2,2.4158]
[1720586566741,1.24053649,3125.9,3125.2,2.4158]
[1720586566946,1.0058404,3125.9,3125.2,2.4158]
[1720586567148,1.0058404,3125.9,3125.0,2.834]
[1720586567305,1.0058404,3125.8,3125.0,2.834]
[1720586567847,0.23469609,3125.7,3125.0,2.834]
[1720586568027,1.0058404,3125.8,3125.0,2.834]
[1720586568408,1.0058404,3125.9,3125.0,2.834]
[1720586568630,1.0058404,3125.8,3125.0,2.834]
[1720586568841,0.53469609,3125.8,3125.0,2.834]
[1720586569016,1.0058404,3125.9,3125.0,2.834]
[1720586569229,1.0058404,3126.0,3125.0,2.834]
[1720586569550,4.0058404,3126.1,3125.1,2.4685]
[1720586569840,3.55816662,3126.1,3125.1,2.4685]
[1720586570050,0.55816662,3126.1,3125.1,2.4685]
[1720586571041,1.0058404,3126.2,3125.4,2.834]
[1720586571209,1.25078672,3126.5,3125.4,2.834]
[1720586571609,1.0058404,3126.4,3125.4,2.834]
[1720586572717,4.25078672,3126.5,3125.5,2.4457]
[1720586573542,1.0058404,3126.3,3125.5,2.4457]
[1720586574051,1.0058404,3126.2,3125.5,2.4457]
[1720586574253,1.0058404,3126.1,3125.5,2.4457]
[1720586574477,0.21144139,3126.0,3125.5,2.4457]
[1720586574681,1.0058404,3126.1,3125.0,3.0]
[1720586574844,1.00591482,3125.7,3124.4,2.3023]
[1720586575045,1.00591482,3125.7,3124.5,2.834]
[1720586575247,1.34121977,3125.9,3124.5,2.834]
[1720586575248,1.00591482,3125.6,3124.5,2.834]
[1720586577155,1.00591482,3125.6,3124.4,2.3023]
[1720586577377,1.00591482,3125.2,3124.4,2.3023]
[1720586579277,1.00591482,3125.3,3124.4,2.3023]
[1720586579977,1.00591482,3125.4,3124.4,2.3023]
[1720586580188,1.67433582,3125.4,3124.4,2.3023]
[1720586580483,1.67433582,3125.4,3124.5,2.834]
[1720586580781,1.00591482,3125.5,3124.5,2.834]
[1720586580984,0.66617198,3125.6,3124.5,2.834]
[1720586580985,4.00560948,3125.6,3124.5,2.834]
[1720586581275,1.00560948,3125.6,3124.5,2.834]
[1720586581787,1.00560948,3125.9,3125.0,2.4557]
[1720586582090,2.01121897,3126.4,3125.0,2.4557]
[1720586582091,1.00560948,3126.3,3125.3,2.834]
[1720586582241,1.00560948,3126.1,3125.0,5.4557]
[1720586582445,1.00560948,3125.9,3125.0,5.4557]
[1720586582753,1.00560948,3126.0,3125.0,5.4557]
[1720586583074,2.35920905,3125.9,3125.0,2.4557]
[1720586583246,1.00560948,3126.1,3125.0,2.4557]
[1720586583448,1.00560948,3126.2,3125.0,5.4557]
[1720586583785,1.00557044,3126.2,3125.0,5.4557]
[1720586584150,1.00557043,3126.2,3125.0,5.4557]
[1720586584843,1.00557043,3126.1,3125.0,5.4557]
[1720586585447,1.00557043,3126.1,3125.0,2.4557]
[1720586585652,1.00557043,3125.8,3125.0,2.4557]
[1720586586070,1.00557043,3125.6,3125.0,2.4557]
[1720586586272,1.00557043,3125.6,3124.5,2.834]
[1720586586273,2.11428733,3125.5,3124.6,2.2728]
[1720586586569,1.00557043,3125.3,3124.6,2.2728]
[1720586586770,1.00557043,3125.2,3124.6,2.2728]
[1720586586990,2.11447539,3125.2,3124.6,2.2728]
[1720586587146,1.00557043,3125.2,3124.6,2.2728]
[1720586587794,1.00557043,3125.2,3124.2,2.4999]
[1720586588154,1.34354079,3125.1,3124.2,2.4999]
[1720586588378,0.2346331,3125.1,3124.2,2.4999]
[1720586589395,1.00557043,3125.2,3124.2,2.4999]
[1720586590495,1.10892851,3125.1,3124.2,2.4999]
[1720586590789,1.00557043,3125.2,3124.2,2.4999]
[1720586591103,1.00557043,3125.0,3124.2,2.4999]
[1720586591399,2.11450448,3124.9,3124.2,2.4999]
[1720586591555,1.00557043,3124.9,3124.2,2.4999]
[1720586592264,4.25053989,3125.0,3124.2,2.4999]
[1720586592464,1.00557043,3125.2,3124.3,0.06400822]
[1720586592687,1.00557043,3125.3,3124.3,0.06400822]
[1720586592853,1.00557043,3125.5,3124.6,2.3327]
[1720586593050,1.00557043,3125.6,3124.6,2.3327]
[1720586593802,2.11439809,3125.5,3124.6,2.3327]
[1720586594095,0.21143981,3125.4,3124.6,2.3327]
[1720586595292,1.00560983,3125.5,3124.6,2.3327]
[1720586596396,1.00575348,3125.5,3124.6,2.3327]
[1720586597586,2.66459716,3125.4,3124.6,2.3327]
[1720586597788,1.55575348,3125.4,3124.6,2.3327]
[1720586597983,1.00575348,3125.4,3124.7,0.06400774]
[1720586598314,1.00575348,3125.8,3125.0,2.4649]
[1720586598508,1.00575348,3125.9,3125.0,2.4649]
[1720586598710,0.23467581,3125.8,3125.0,2.4649]
[1720586599005,1.24042929,3125.8,3125.0,2.4649]
[1720586599202,1.24042929,3125.8,3124.6,3.0]
[1720586599203,1.00575348,3125.6,3124.5,2.834]
[1720586599430,1.00575348,3125.6,3124.4,2.4649]
[1720586599716,1.00575348,3125.4,3124.4,2.4649]
[1720586599897,1.00575348,3125.3,3124.4,2.4649]
[1720586600413,1.00575348,3125.2,3124.4,2.4649]
[1720586601478,1.54042929,3125.2,3124.4,2.4649]
[1720586601719,0.53467581,3125.2,3124.4,2.4649]
[1720586602004,1.00575348,3125.3,3124.4,2.4649]
[1720586602617,1.00602843,3125.3,3124.4,2.4649]
[1720586602784,1.00602843,3125.4,3124.5,2.8980036]
[1720586602984,1.00602843,3125.4,3124.5,2.834]
[1720586603184,3.0,3125.5,3124.5,2.834]
[1720586603185,1.00602843,3125.5,3124.5,2.834]
[1720586604517,1.00602843,3125.7,3125.4,2.3054]
[1720586604823,1.00602843,3125.9,3125.4,2.3054]
[1720586605111,1.00602843,3126.0,3125.4,2.3054]
[1720586606477,1.00602843,3125.9,3125.4,2.3054]
[1720586606679,1.00602843,3126.0,3125.4,2.3054]
[1720586608723,1.00602843,3126.1,3125.4,2.3054]
[1720586609015,1.34137125,3126.2,3125.4,2.3054]
[1720586609016,1.00602843,3126.2,3125.4,2.3054]
[1720586609171,1.00602843,3126.3,3125.4,2.3054]
[1720586612217,1.00602843,3126.2,3125.4,2.3054]
[1720586612418,1.00601236,3126.2,3125.4,2.3054]
[1720586612621,1.00601236,3125.9,3125.4,2.3054]
[1720586612828,1.00616132,3125.9,3125.4,2.3054]
[1720586613325,1.00616132,3126.0,3125.4,2.3054]
[1720586614785,1.5409323,3126.0,3125.4,2.3054]
[1720586615491,0.53477098,3126.0,3125.4,2.3054]
[1720586615912,3.0,3127.0,3125.4,2.3054]
[1720586616119,1.99381075,3126.9,3125.4,2.3054]
[1720586616286,1.10860868,3126.8,3125.4,2.3054]
[1720586616487,0.55,3126.7,3125.4,2.3054]
[1720586616828,2.4748,3126.5,3125.0,2.3966]
[1720586617121,1.65860868,3126.4,3125.0,2.3966]
[1720586617291,4.65860868,3126.4,3125.0,2.3966]
[1720586617485,1.10860868,3126.3,3125.0,2.3966]
[1720586617691,1.01586087,3126.2,3125.0,2.3966]
[1720586618028,1.10860868,3126.1,3125.0,2.3966]
[1720586618220,0.55,3126.0,3125.0,2.3966]
[1720586618390,1.10860868,3125.9,3125.0,2.3966]
[1720586618588,1.00649399,3125.6,3125.0,2.3966]
[1720586618901,1.29634259,3125.6,3125.0,2.3966]
[1720586619102,0.2898486,3125.6,3125.0,2.3966]
[1720586619502,1.29634259,3125.6,3125.0,2.3966]
[1720586619811,1.00649399,3125.5,3125.0,2.3966]
[1720586621002,2.11535818,3125.4,3124.6,2.4133]
[1720586621204,1.00649399,3125.2,3124.6,2.4133]
[1720586621591,1.00649399,3125.0,3124.6,2.4133]
[1720586621826,1.00649399,3124.8,3124.2,2.4133]
[1720586622205,1.00693491,3124.8,3124.2,2.4133]
[1720586622611,1.00689344,3124.8,3124.2,2.4133]
[1720586623265,1.00689344,3124.9,3124.2,2.4133]
[1720586623438,1.00689344,3125.0,3124.2,2.4133]
[1720586623795,1.00689344,3125.1,3124.2,2.4133]
[1720586624435,1.00689344,3125.0,3124.2,2.4133]
[1720586624855,1.00689344,3125.1,3124.2,2.4133]
[1720586625431,1.00689344,3125.0,3124.2,2.4133]
[1720586626154,1.00689344,3125.0,3124.3,0.06400959]
[1720586626353,1.00689344,3125.1,3124.6,2.312]
[1720586626539,1.00689344,3125.4,3124.6,2.312]
[1720586626715,1.00689344,3125.5,3124.9,2.834]
[1720586627547,1.00689344,3125.3,3124.6,2.312]
[1720586627937,1.24183524,3125.4,3124.6,2.312]
[1720586628132,1.00689344,3125.4,3124.6,2.312]
[1720586629364,1.00689344,3125.5,3124.6,2.312]
[1720586630156,1.00689344,3125.4,3124.6,2.312]
[1720586630670,1.00689344,3125.3,3124.6,2.312]
[1720586631049,1.00689344,3125.1,3124.6,2.312]
[1720586631845,1.00677334,3125.1,3124.6,2.312]
[1720586632041,1.24168712,3125.1,3124.6,2.312]
[1720586632245,1.00677537,3125.1,3124.6,2.312]
[1720586633769,1.00677537,3125.0,3124.6,2.312]
[1720586634129,1.00677537,3124.9,3124.6,2.312]
[1720586634333,1.24168962,3124.9,3124.6,2.312]
[1720586635049,3.0,3125.4,3124.6,2.312]
[1720586635350,1.00679447,3124.9,3124.6,2.312]
[1720586635751,1.00679447,3124.9,3124.2,2.3188]
[1720586636072,1.00679447,3124.4,3123.8,2.3188]
[1720586636282,1.00679447,3124.3,3123.8,2.3188]
[1720586639005,1.00679447,3124.2,3123.8,2.3188]
[1720586639350,1.00679447,3124.3,3123.8,2.3188]
[1720586639555,0.23491871,3124.2,3123.8,2.3188]
[1720586639784,1.00679447,3124.3,3123.4,2.3083]
[1720586640494,1.00679447,3124.4,3123.4,2.3083]
[1720586640695,1.00679447,3124.5,3123.4,2.3083]
[1720586641004,1.00679447,3124.5,3123.6,2.834]
[1720586641164,1.00679447,3124.5,3123.7,2.3083]
[1720586641504,1.00555762,3124.6,3123.8,0.06402097]
[1720586641669,3.0,3124.8,3124.1,2.3952]
[1720586641862,4.00555762,3124.8,3124.1,2.3952]
[1720586642063,1.84018773,3124.8,3124.1,2.3952]
[1720586642955,1.67592936,3125.1,3124.1,2.3952]
[1720586642956,1.00555762,3125.1,3124.1,2.3952]
[1720586643157,1.00555762,3125.1,3124.1,2.45921092]
[1720586643367,1.00555762,3125.4,3124.5,2.4566]
[1720586643578,1.00555762,3125.5,3124.5,2.4566]
[1720586644084,1.00508226,3125.5,3124.5,2.4566]
[1720586645605,1.00508226,3125.6,3124.6,0.06400159]
[1720586645918,1.00508226,3125.6,3124.5,2.4566]
[1720586646305,1.00508226,3125.6,3124.5,2.5205985]
[1720586646488,1.00508226,3125.7,3124.6,2.4566]
[1720586646693,1.10876012,3125.6,3124.7,0.0639985]
[1720586646875,1.00508226,3125.7,3124.8,5.2906]
[1720586647078,2.34520714,3126.6,3124.8,5.2906]
[1720586647079,3.1549,3126.9,3124.8,5.2906]
[1720586647266,1.00507055,3125.8,3124.8,5.2906]
[1720586647465,1.10874604,3125.7,3124.8,5.2906]
[1720586647663,1.00507055,3125.8,3124.8,5.2906]
[1720586647867,1.10874421,3125.7,3124.8,5.2906]
[1720586648102,1.10874421,3125.6,3124.8,5.2906]
[1720586648290,0.22174884,3125.5,3124.8,5.2906]
[1720586648695,1.00507055,3125.7,3124.8,5.2906]
[1720586648993,1.10876173,3125.6,3124.8,5.2906]
[1720586649184,1.00507055,3125.7,3124.8,5.2906]
[1720586649367,1.10876268,3125.6,3124.8,5.2906]
[1720586649570,1.00507055,3125.7,3124.8,5.2906]
[1720586649795,1.34327981,3125.6,3124.8,5.2906]
[1720586650020,0.23451646,3125.6,3124.8,5.2906]
[1720586650224,1.10876547,3125.5,3124.8,5.2906]
[1720586650401,1.23958701,3125.6,3124.8,5.2906]
[1720586650601,1.10876641,3125.5,3124.8,5.2906]
[1720586650944,0.23483534,3125.4,3124.8,5.2906]
[1720586651097,0.23451646,3125.6,3124.8,5.2906]
[1720586651734,1.00509096,3125.7,3124.8,5.2906]
[1720586651923,1.10874763,3125.6,3124.8,5.2906]
[1720586652232,1.00509096,3125.7,3124.8,5.2906]
[1720586652434,1.10875714,3125.6,3124.8,5.2906]
[1720586652738,4.00509096,3125.7,3124.8,5.2906]
[1720586653037,1.34328302,3125.6,3124.8,5.2906]
[1720586653200,1.23961219,3125.6,3124.8,5.2906]
[1720586653896,0.23452123,3125.6,3124.9,0.06399841]
[1720586654109,3.0,3125.7,3124.9,0.06399841]
[1720586654313,1.00509096,3125.8,3125.0,2.4552]
[1720586654642,4.34012129,3125.9,3125.0,2.4552]
[1720586654643,1.00509096,3125.9,3125.0,2.4552]
[1720586654999,3.0,3126.0,3125.3,2.4552]
[1720586655000,1.00509096,3126.0,3125.3,2.4552]
[1720586655204,1.00509096,3126.2,3125.3,2.4552]
[1720586655401,2.11369589,3126.1,3125.3,2.4552]
[1720586655628,2.11369589,3126.0,3125.3,2.4552]
[1720586655809,1.00509096,3125.9,3125.3,2.4552]
[1720586656551,1.00509096,3125.9,3124.8,2.834]
[1720586656703,1.00509096,3125.6,3124.7,2.4307]
[1720586656900,1.00509096,3125.4,3124.7,2.4307]
[1720586657333,1.00509096,3125.5,3124.7,2.4307]
[1720586657855,1.00509096,3125.6,3124.7,2.4307]
[1720586658013,1.00509096,3125.5,3124.7,2.4307]
[1720586658335,1.56306431,3125.6,3124.7,5.2647]
[1720586658710,1.00509096,3125.5,3124.7,5.2647]
[1720586659426,1.00509096,3125.5,3124.0,5.72358728]
[1720586659427,1.00509096,3125.1,3124.0,2.2501]
[1720586659636,1.00509096,3124.9,3124.0,2.2501]
[1720586659809,0.34540204,3124.8,3124.0,2.2501]
[1720586660153,1.350493,3124.8,3124.0,2.2501]
[1720586660354,1.00509096,3124.8,3124.0,2.2501]
[1720586660559,1.00644646,3124.5,3124.0,2.2501]
[1720586661060,1.00644646,3124.4,3124.0,2.2501]
[1720586661356,1.00644646,3124.3,3123.7,2.834]
[1720586661816,1.34192861,3124.4,3123.6,2.2501]
[1720586661817,1.00644646,3124.2,3123.6,2.2501]
[1720586662147,1.34192861,3124.4,3123.6,2.2501]
[1720586662148,1.00644646,3124.3,3123.6,2.2501]
[1720586662349,0.23483751,3124.2,3123.6,2.2501]
[1720586662561,1.00644646,3124.3,3123.6,2.2501]
[1720586662728,1.00644646,3124.4,3123.6,2.2501]
[1720586663051,1.00644646,3124.3,3123.6,2.2501]
[1720586663254,1.30140208,3124.3,3123.6,2.2501]
[1720586664163,1.00637118,3124.2,3123.6,2.2501]
[1720586665255,1.30140208,3124.3,3123.6,2.2501]
[1720586665460,0.2950309,3124.3,3123.6,2.2501]
[1720586666017,4.00637118,3124.4,3123.6,2.2501]
[1720586666254,1.00637118,3124.4,3123.6,2.2501]
[1720586666454,0.33533036,3124.2,3123.6,2.2501]
[1720586670175,1.34170154,3124.2,3123.6,2.2501]
[1720586670476,0.33533036,3124.2,3123.6,2.2501]
[1720586675156,1.34170154,3124.2,3122.9,2.834]
[1720586675355,1.00637118,3124.1,3123.0,2.4167]
[1720586675554,1.27472416,3124.0,3123.0,2.4167]
[1720586676216,1.27349387,3124.0,3123.0,2.4167]
[1720586676712,1.00514089,3123.9,3123.0,2.4167]
[1720586679217,1.00514089,3123.8,3123.0,2.4167]
[1720586679879,4.00442384,3123.9,3123.0,2.4167]
[1720586680083,0.46085408,3123.8,3123.0,2.4167]
[1720586681284,4.27277682,3124.0,3123.0,2.4167]
[1720586681485,0.26835298,3124.0,3123.0,2.4167]
[1720586681707,0.33539587,3123.9,3123.0,2.4167]
[1720586686328,1.10944671,3123.8,3123.0,2.4167]
[1720586687000,0.33539587,3123.9,3123.0,2.4167]
[1720586687201,0.36037489,3123.8,3123.0,2.4167]
[1720586687723,1.10948742,3123.7,3123.0,2.4167]
[1720586688288,1.10948742,3123.7,3122.6,2.3118]
[1720586688511,4.10948742,3123.7,3122.6,2.3118]
[1720586688717,0.68451623,3123.6,3122.6,2.3118]
[1720586688939,0.68451623,3123.6,3122.0,2.3192]
[1720586689140,0.55,3123.5,3122.0,2.3192]
[1720586689291,0.0189353,3123.4,3122.0,2.3192]
[1720586696027,2.3492,3123.3,3121.1,2.3192]
[1720586696227,0.55,3123.2,3121.1,5.1532]
[1720586696525,0.58992,3123.1,3121.1,5.1532]
[1720586696721,0.55,3123.0,3121.1,5.1532]
[1720586696921,0.88556269,3123.0,3121.1,5.1532]
[1720586697573,2.2631,3122.9,3121.1,5.1532]
[1720586697867,5.2631,3122.9,3121.2,2.3903]
[1720586698165,0.31486627,3122.8,3121.2,2.3903]
[1720586698358,3.31486627,3122.8,3121.2,2.3903]
[1720586698525,0.55,3122.7,3121.2,2.3903]
[1720586700993,0.31486627,3122.8,3121.2,2.3903]
[1720586701174,0.33556269,3123.0,3121.9,2.834]
[1720586701547,0.33556269,3123.0,3121.6,2.4924]
[1720586702062,2.4457,3122.9,3121.6,2.4924]
[1720586702267,0.27812627,3122.8,3121.6,2.4924]
[1720586702470,2.4457,3122.9,3121.6,2.4924]
[1720586702471,0.33556269,3123.0,3121.6,2.4924]
[1720586703648,0.0189353,3123.4,3122.0,2.42]
[1720586703849,1.00389525,3124.1,3122.4,2.42]
[1720586703850,2.2802,3123.9,3122.4,2.42]
[1720586704055,0.97402,3123.8,3122.7,2.834]
[1720586704363,2.2802,3123.9,3122.7,2.834]
[1720586704563,2.2802,3123.9,3122.4,2.42]
[1720586705853,2.2802,3123.9,3122.0,2.4493]
[1720586706054,0.52802,3123.8,3122.0,2.4493]
[1720586706255,2.3808,3123.7,3122.0,2.4493]
[1720586706498,0.56913285,3123.6,3122.0,2.4493]
[1720586706684,0.01913285,3123.5,3122.0,2.4493]
[1720586708778,2.4603,3123.4,3122.0,2.4493]
[1720586708974,0.24794329,3123.3,3122.0,2.4493]
[1720586709176,4.25183854,3123.3,3122.0,2.4493]
[1720586709672,1.00389525,3123.2,3122.0,2.4493]
[1720586709902,1.00389525,3123.1,3122.0,2.4493]
[1720586711098,1.00389525,3122.9,3121.6,2.4912]
[1720586711286,2.3572,3122.8,3121.6,2.4912]
[1720586711462,1.34000478,3122.7,3121.2,2.4912]
[1720586711662,1.00389525,3122.6,3121.2,2.4912]
[1720586711979,4.34000478,3122.7,3121.2,2.4912]
[1720586712161,0.40318365,3122.6,3121.5,2.834]
[1720586712362,1.00389525,3122.8,3121.9,2.834]
[1720586712596,1.67463859,3123.1,3121.9,2.834]
[1720586712597,1.25183854,3123.3,3122.0,2.4912]
[1720586712782,3.0,3123.2,3122.0,2.4912]
[1720586712986,3.0,3123.2,3121.5,2.56279]
[1720586712987,1.00389525,3123.2,3121.5,2.3313]
[1720586713161,1.00389525,3123.2,3121.1,5.1653]
[1720586713162,3.41789525,3122.7,3121.1,5.1653]
[1720586713367,1.00389525,3122.5,3121.1,2.3313]
[1720586713788,1.55389525,3122.4,3121.1,2.3313]
[1720586714184,1.00389525,3122.3,3121.1,2.3313]
[1720586714382,1.55389525,3122.2,3121.1,2.3313]
[1720586714618,3.55,3122.2,3121.1,2.3313]
[1720586714917,1.00389525,3122.1,3121.1,2.3313]
[1720586715086,0.45538953,3122.0,3121.1,2.3313]
[1720586715419,1.00389525,3122.0,3121.1,2.3313]
[1720586715710,2.2949,3122.1,3120.6,2.3881]
[1720586715893,1.55389525,3122.0,3120.6,2.3881]
[1720586716101,1.00389525,3121.9,3120.6,2.3881]
[1720586716300,1.00389525,3121.8,3120.6,2.3881]
[1720586716608,0.40038953,3121.7,3120.6,2.3881]
[1720586716982,3.0,3122.0,3120.7,2.834]
[1720586717212,1.84661181,3122.5,3121.1,2.834]
[1720586717414,3.0,3122.4,3121.1,2.834]
[1720586717712,1.00389525,3122.6,3120.5,2.56368]
[1720586717713,1.11008342,3122.3,3120.5,2.3092]
[1720586717914,2.3687,3122.0,3120.5,2.3092]
[1720586718221,2.11397867,3121.9,3120.5,2.3092]
[1720586718374,1.66008342,3121.8,3120.5,2.3092]
[1720586718572,0.56639787,3121.7,3120.5,2.3092]
[1720586718770,1.11033183,3121.7,3120.6,2.3142]
[1720586719004,1.35742198,3122.2,3121.1,2.3142]
[1720586719005,0.01942392,3122.2,3121.1,2.3142]
[1720586719475,1.1100995,3122.1,3121.1,2.3142]
[1720586719670,3.4174995,3122.0,3120.7,2.3142]
[1720586719911,1.45184945,3121.9,3120.7,2.3142]
[1720586720118,1.1100995,3121.8,3120.7,2.3142]
[1720586722010,1.66032595,3121.7,3120.7,2.3142]
[1720586722179,1.11032595,3121.6,3120.7,2.3142]
[1720586722512,0.66526485,3121.8,3120.7,2.3142]
[1720586723316,1.11024394,3121.7,3120.7,2.3142]
[1720586723520,0.66526485,3121.8,3120.2,2.834]
[1720586723688,1.11028712,3121.7,3120.3,2.2994]
[1720586724035,1.11028712,3121.6,3120.3,2.2994]
[1720586724315,2.11378566,3121.6,3120.3,2.2994]
[1720586724527,1.62166569,3121.5,3120.3,2.2994]
[1720586724674,1.11028712,3121.4,3120.3,2.2994]
[1720586724876,1.11028712,3121.5,3120.3,2.2994]
[1720586725102,4.00349854,3121.7,3120.3,2.2994]
[1720586725319,3.28423884,3121.6,3120.3,2.2994]
[1720586725522,1.11044852,3121.5,3120.3,2.2994]
[1720586725725,2.838,3121.4,3119.9,2.2933]
[1720586726005,4.11044852,3121.3,3119.9,2.2933]
[1720586726236,1.92525886,3121.2,3119.9,2.2933]
[1720586726406,1.66044852,3121.1,3119.9,2.2933]
[1720586726630,1.11044852,3121.0,3119.9,2.2933]
[1720586727339,1.11044852,3121.1,3119.9,2.2933]
[1720586727509,0.19252589,3121.0,3119.9,2.2933]
[1720586727919,0.81481034,3121.2,3119.9,2.2933]
[1720586734113,0.01961563,3121.2,3119.9,2.2933]
[1720586735412,3.37885478,3121.1,3119.9,2.2933]
[1720586735616,3.0,3121.0,3119.9,2.2933]
[1720586735939,1.1106545,3120.9,3119.5,2.4584]
[1720586736149,2.11403663,3120.8,3119.5,2.4584]
[1720586736459,2.11403663,3120.7,3119.5,2.4584]
[1720586736616,1.32205816,3120.6,3119.5,2.4584]
[1720586736816,3.0,3120.8,3119.5,2.4584]
[1720586737041,1.11070644,3120.7,3119.5,2.4584]
[1720586737313,1.11075108,3120.6,3119.5,2.4584]
[1720586737514,4.55338213,3120.9,3119.5,2.4584]
[1720586737515,1.11075108,3120.5,3119.5,2.4584]
[1720586737745,1.11075108,3120.7,3119.5,2.4584]
[1720586737950,1.66078572,3120.6,3119.5,2.4584]
[1720586738267,2.4745,3120.4,3119.0,9.8663]
[1720586738558,2.4745,3120.4,3119.0,2.3963]
[1720586738559,1.11078572,3120.3,3119.0,2.3963]
[1720586738716,0.35852857,3120.2,3119.0,2.3963]
[1720586738915,1.11078572,3120.1,3119.0,2.3963]